bitfinex-derivatives/quotes_BTCF0:USTF0_20210705
["timestamp","ask_amount","ask_price","bid_price","bid_amount"]
[1625454244265,1.75851305,34335.0,34334.0,0.24057544]
[1625454244466,1.75851305,34335.0,34329.0,0.30761697]
[1625454244665,1.69951305,34335.0,34329.0,0.30761697]
[1625454244917,1.34371194,34333.0,34329.0,0.30761697]
[1625454245117,0.057,34332.0,34329.0,0.30761697]
[1625454245267,0.116,34332.0,34329.0,0.30761697]
[1625454245473,0.057,34332.0,34329.0,0.36661697]
[1625454245572,1.34371194,34333.0,34329.0,0.30761697]
[1625454245669,1.34371194,34333.0,34329.0,0.61364697]
[1625454246073,1.58503961,34335.0,34329.0,0.61364697]
[1625454246271,1.58503961,34335.0,34329.0,0.55464697]
[1625454246371,1.58503961,34335.0,34329.0,0.61364697]
[1625454246672,0.057,34334.0,34329.0,0.61364697]
[1625454246924,1.40151506,34334.0,34329.0,0.61364697]
[1625454247676,1.34451506,34334.0,34329.0,0.61364697]
[1625454247875,1.34451506,34334.0,34333.0,0.24057544]
[1625454247974,0.24057544,34335.0,34333.0,0.29957544]
[1625454247975,1.58750952,34335.0,34333.0,0.29957544]
[1625454248474,1.58750952,34335.0,34333.0,0.24057544]
[1625454248875,1.34669664,34334.0,34333.0,0.24057544]
[1625454249073,1.40369664,34334.0,34333.0,0.24057544]
[1625454249425,0.057,34334.0,34333.0,0.24057544]
[1625454249877,1.40334533,34334.0,34333.0,0.24057544]
[1625454250227,1.40334533,34334.0,34333.0,0.29957544]
[1625454250830,0.057,34334.0,34333.0,0.29957544]
[1625454251030,0.057,34334.0,34333.0,0.24057544]
[1625454251932,0.057,34334.0,34333.0,0.29957544]
[1625454252131,0.057,34334.0,34333.0,0.24057544]
[1625454252332,0.057,34334.0,34333.0,0.29957544]
[1625454252633,0.057,34334.0,34333.0,0.24057544]
[1625454252933,0.057,34334.0,34333.0,0.29957544]
[1625454253034,0.057,34334.0,34333.0,0.24057544]
[1625454253234,0.057,34334.0,34333.0,0.29957544]
[1625454253385,0.057,34334.0,34333.0,0.24057544]
[1625454254486,0.057,34334.0,34333.0,0.29957544]
[1625454255692,0.057,34334.0,34333.0,0.24057544]
[1625454255994,0.057,34334.0,34333.0,0.29957544]
[1625454256193,0.057,34334.0,34333.0,0.35857544]
[1625454256643,0.057,34334.0,34333.0,0.29957544]
[1625454257042,0.057,34334.0,34333.0,0.24057544]
[1625454257242,0.057,34334.0,34333.0,0.29957544]
[1625454257697,0.057,34334.0,34333.0,0.24057544]
[1625454258997,0.057,34334.0,34333.0,0.29957544]
[1625454259449,0.057,34334.0,34333.0,0.24057544]
[1625454260099,0.057,34334.0,34333.0,0.29957544]
[1625454260200,0.057,34334.0,34333.0,0.47779544]
[1625454260901,0.057,34334.0,34333.0,0.53679544]
[1625454261807,0.057,34334.0,34333.0,0.47779544]
[1625454261955,0.057,34334.0,34333.0,0.53679544]
[1625454262055,0.057,34334.0,34333.0,0.47779544]
[1625454262255,0.057,34334.0,34333.0,0.53679544]
[1625454262354,0.057,34334.0,34333.0,0.47779544]
[1625454262454,0.057,34334.0,34333.0,0.24057544]
[1625454262909,0.057,34334.0,34333.0,0.29957544]
[1625454263607,0.057,34334.0,34333.0,0.35857544]
[1625454263758,0.057,34334.0,34333.0,0.29957544]
[1625454263858,0.057,34334.0,34333.0,0.35857544]
[1625454264610,0.057,34334.0,34333.0,0.29957544]
[1625454264861,0.057,34334.0,34333.0,0.35857544]
[1625454264962,0.057,34334.0,34333.0,0.29957544]
[1625454265916,0.24057544,34335.0,34333.0,0.29957544]
[1625454266013,0.24057544,34335.0,34333.0,0.35857544]
[1625454266463,0.24057544,34335.0,34334.0,0.00469874]
[1625454266564,0.24057544,34335.0,34334.0,0.06369874]
[1625454266665,0.24057544,34335.0,34334.0,0.12269874]
[1625454267669,0.24057544,34335.0,34334.0,0.20959874]
[1625454267972,1.1758365,34339.0,34334.0,0.20959874]
[1625454268070,1.1758365,34339.0,34334.0,0.45017418]
[1625454268472,1.1758365,34339.0,34335.0,0.06369753]
[1625454268592,1.1758365,34339.0,34335.0,0.12269753]
[1625454268671,0.24057544,34343.0,34335.0,0.12269753]
[1625454268970,0.24057544,34343.0,34336.0,0.00469733]
[1625454269070,0.24057544,34343.0,34336.0,0.06369733]
[1625454269173,0.24057544,34343.0,34336.0,0.12269733]
[1625454269522,0.24057544,34343.0,34337.0,0.50469723]
[1625454269622,0.24057544,34343.0,34337.0,0.56369723]
[1625454269723,0.24057544,34343.0,34337.0,0.62269723]
[1625454269823,1.17696452,34348.0,34337.0,0.62269723]
[1625454269974,1.17696452,34348.0,34338.0,0.00469652]
[1625454270073,1.17696452,34348.0,34347.0,0.78072632]
[1625454270174,1.17696452,34348.0,34347.0,1.05958632]
[1625454270276,0.24057544,34352.0,34347.0,1.05958632]
[1625454270574,0.24057544,34352.0,34348.0,0.00469622]
[1625454270676,0.24057544,34352.0,34349.0,4.7846]
[1625454270774,0.24057544,34352.0,34349.0,4.8436]
[1625454270875,0.24057544,34352.0,34349.0,4.9026]
[1625454271077,1.17904909,34355.0,34350.0,0.00469622]
[1625454271175,0.32230971,34357.0,34350.0,0.12269622]
[1625454271276,1.17934041,34357.0,34351.0,0.5]
[1625454271376,0.96354041,34357.0,34351.0,0.559]
[1625454271474,0.85414041,34357.0,34351.0,0.618]
[1625454271574,0.71544041,34357.0,34351.0,0.618]
[1625454271674,0.59184041,34357.0,34352.0,0.00469412]
[1625454271776,0.59184041,34357.0,34352.0,0.12269412]
[1625454271874,0.55704041,34357.0,34352.0,0.12269412]
[1625454272076,0.55704041,34357.0,34356.0,0.72172632]
[1625454272174,0.55704041,34357.0,34356.0,1.06294632]
[1625454272275,0.057,34366.0,34356.0,1.06294632]
[1625454272474,0.057,34366.0,34356.0,1.06763983]
[1625454272676,0.057,34366.0,34357.0,0.00469334]
[1625454272777,0.057,34366.0,34357.0,0.12269334]
[1625454272878,1.01489556,34373.0,34357.0,0.12269334]
[1625454272976,0.057,34372.0,34357.0,0.12269334]
[1625454273177,0.057,34372.0,34358.0,0.00469343]
[1625454273279,0.057,34372.0,34358.0,0.12269343]
[1625454273378,0.98983203,34375.0,34358.0,0.62269343]
[1625454273479,0.83183203,34375.0,34358.0,0.62269343]
[1625454273581,0.78843203,34375.0,34358.0,0.62269343]
[1625454273681,0.78843203,34375.0,34359.0,0.43439]
[1625454273778,0.78843203,34375.0,34360.0,0.5]
[1625454273880,0.75923203,34375.0,34360.0,0.618]
[1625454273979,0.74933203,34375.0,34360.0,0.618]
[1625454274080,0.70423203,34375.0,34374.0,0.96230176]
[1625454274179,0.70423203,34375.0,34374.0,1.34993176]
[1625454274279,0.47876044,34375.0,34374.0,1.34993176]
[1625454274679,0.9756,34377.0,34374.0,1.34993176]
[1625454275230,0.9756,34377.0,34374.0,1.29093176]
[1625454275333,0.9756,34377.0,34374.0,1.02130176]
[1625454275531,0.9756,34377.0,34374.0,1.08030176]
[1625454280587,0.9756,34377.0,34374.0,1.02130176]
[1625454280687,0.9756,34377.0,34374.0,1.08030176]
[1625454281089,0.9756,34377.0,34374.0,1.02130176]
[1625454281191,0.9756,34377.0,34374.0,1.08030176]
[1625454281390,1.0326,34377.0,34374.0,1.08030176]
[1625454281790,0.9756,34377.0,34374.0,1.08030176]
[1625454281989,0.9756,34377.0,34374.0,1.02130176]
[1625454282089,0.9756,34377.0,34374.0,1.08030176]
[1625454282641,0.9756,34377.0,34375.0,0.0872]
[1625454282743,0.9756,34377.0,34375.0,0.118]
[1625454284443,1.0326,34377.0,34375.0,0.118]
[1625454284542,0.9756,34377.0,34375.0,0.118]
[1625454285443,0.9756,34377.0,34375.0,0.059]
[1625454285643,0.9756,34377.0,34374.0,0.96230176]
[1625454285743,1.29354,34377.0,34374.0,0.96230176]
[1625454285992,1.29354,34377.0,34374.0,1.02130176]
[1625454286295,1.29354,34377.0,34374.0,1.08030176]
[1625454287544,0.9756,34377.0,34374.0,1.08030176]
[1625454290453,0.9756,34377.0,34375.0,0.0869]
[1625454290553,0.9756,34377.0,34375.0,0.059]
[1625454290653,0.9756,34377.0,34375.0,0.118]
[1625454299082,0.9756,34377.0,34376.0,0.00469542]
[1625454299180,0.9756,34377.0,34376.0,0.06369542]
[1625454299279,0.9756,34377.0,34376.0,0.12269542]
[1625454300534,0.55964501,34390.0,34377.0,0.059]
[1625454300632,0.50264501,34390.0,34377.0,0.118]
[1625454300733,0.50264501,34390.0,34378.0,0.5]
[1625454300831,0.50264501,34390.0,34378.0,0.559]
[1625454300931,0.18554501,34390.0,34388.0,4.5797]
[1625454301031,0.02574501,34390.0,34388.0,4.91448]
[1625454301132,0.9793,34403.0,34388.0,4.91448]
[1625454301233,0.9793,34403.0,34389.0,0.00469368]
[1625454301331,0.9793,34403.0,34389.0,0.06369368]
[1625454301633,1.09777346,34394.0,34389.0,0.06369368]
[1625454301732,0.9793,34403.0,34390.0,0.00469343]
[1625454301733,0.057,34397.0,34390.0,0.00469343]
[1625454301834,0.057,34397.0,34390.0,0.06369343]
[1625454301933,0.057,34397.0,34390.0,0.12269343]
[1625454302183,0.057,34397.0,34396.0,0.72172632]
[1625454302286,0.24057544,34400.0,34396.0,0.72172632]
[1625454302385,0.29957544,34400.0,34396.0,1.05259632]
[1625454302484,0.29957544,34400.0,34396.0,1.05729038]
[1625454302785,0.35657544,34400.0,34397.0,0.00469453]
[1625454302987,0.35657544,34400.0,34397.0,0.06369453]
[1625454303285,0.35657544,34400.0,34398.0,0.00469444]
[1625454303386,0.29957544,34400.0,34398.0,0.00469444]
[1625454303485,0.29957544,34400.0,34398.0,0.06369444]
[1625454303886,0.29957544,34400.0,34399.0,0.0046943]
[1625454303987,0.29957544,34400.0,34399.0,0.0636943]
[1625454304540,0.29957544,34400.0,34399.0,0.0046943]
[1625454304939,0.29957544,34400.0,34396.0,0.72172632]
[1625454305040,0.35657544,34400.0,34399.0,0.059]
[1625454305141,0.29957544,34400.0,34399.0,0.059]
[1625454305340,0.29957544,34400.0,34397.0,0.00469025]
[1625454305439,0.35657544,34400.0,34399.0,0.00469025]
[1625454305542,0.29957544,34400.0,34399.0,0.00469025]
[1625454305742,0.29957544,34400.0,34397.0,0.00468955]
[1625454305841,0.29957544,34400.0,34399.0,0.059]
[1625454306194,0.059,34400.0,34399.0,0.059]
[1625454306296,0.059,34400.0,34399.0,0.06368947]
[1625454307545,0.059,34400.0,34399.0,0.00468947]
[1625454307643,0.118,34400.0,34396.0,0.72172632]
[1625454307743,0.46168,34400.0,34396.0,0.72172632]
[1625454308143,0.46168,34400.0,34397.0,0.00469543]
[1625454308243,0.24057544,34398.0,34397.0,0.00469543]
[1625454308343,0.29957544,34398.0,34397.0,0.00469543]
[1625454308643,0.29957544,34398.0,34396.0,0.72172632]
[1625454308743,0.24057544,34398.0,34396.0,0.72172632]
[1625454309197,0.24057544,34398.0,34397.0,0.00469776]
[1625454309698,0.24057544,34398.0,34396.0,0.72172632]
[1625454310701,0.29957544,34398.0,34396.0,0.72172632]
[1625454310903,0.29957544,34398.0,34374.0,0.0863]
[1625454311003,0.057,34397.0,34378.0,0.2043]
[1625454311103,0.116,34397.0,34378.0,0.1453]
[1625454311304,0.116,34397.0,34379.0,0.00469811]
[1625454311403,0.116,34397.0,34379.0,0.06369811]
[1625454311510,0.116,34397.0,34379.0,0.12269811]
[1625454311704,0.175,34397.0,34379.0,0.12269811]
[1625454311853,0.175,34397.0,34380.0,0.00469814]
[1625454311954,0.175,34397.0,34380.0,0.12269814]
[1625454312255,0.24057544,34386.0,34385.0,0.24057544]
[1625454312355,0.44288544,34386.0,34385.0,0.29957544]
[1625454312457,0.44288544,34386.0,34382.0,0.24057544]
[1625454312554,0.49988544,34386.0,34382.0,0.24057544]
[1625454312756,0.55888544,34386.0,34383.0,0.0046985]
[1625454312856,0.61788544,34386.0,34383.0,0.0046985]
[1625454313255,0.61788544,34386.0,34379.0,0.00469868]
[1625454313608,0.55888544,34386.0,34379.0,0.00469868]
[1625454313707,0.49988544,34386.0,34379.0,0.00469868]
[1625454314108,0.49988544,34386.0,34379.0,0.06369868]
[1625454314260,0.24057544,34380.0,34379.0,0.06369868]
[1625454314559,0.24057544,34380.0,34379.0,0.12269868]
[1625454314760,0.24057544,34380.0,34379.0,0.06369868]
[1625454315513,0.24057544,34380.0,34379.0,0.12269868]
[1625454316015,0.24057544,34380.0,34379.0,0.06369868]
[1625454316216,0.24057544,34380.0,34379.0,0.12269868]
[1625454317566,0.24057544,34380.0,34379.0,0.21109868]
[1625454318670,0.15407544,34380.0,34379.0,0.21109868]
[1625454319327,0.24057544,34381.0,34379.0,0.21109868]
[1625454319428,0.24057544,34381.0,34379.0,0.53862868]
[1625454319777,0.24057544,34381.0,34380.0,0.00469813]
[1625454319877,0.24057544,34381.0,34380.0,0.06369813]
[1625454319982,0.24057544,34381.0,34380.0,0.12269813]
[1625454320277,0.24057544,34381.0,34380.0,0.36327357]
[1625454321931,0.29757544,34385.0,34380.0,0.36327357]
[1625454322333,0.29757544,34385.0,34384.0,0.24057544]
[1625454322433,0.24057544,34385.0,34384.0,0.44637544]
[1625454322682,0.24057544,34385.0,34384.0,0.45107353]
[1625454324940,0.15487544,34385.0,34384.0,0.45107353]
[1625454325042,0.057,34390.0,34384.0,0.45107353]
[1625454325139,0.24057544,34391.0,34384.0,0.45107353]
[1625454325339,0.18287544,34391.0,34385.0,0.00469704]
[1625454325438,0.12597544,34391.0,34385.0,0.12269704]
[1625454325542,0.03037544,34391.0,34385.0,0.12269704]
[1625454325641,0.21195088,34394.0,34389.0,4.9979]
[1625454325745,1.3100651,34396.0,34390.0,0.0863]
[1625454325839,1.3100651,34396.0,34391.0,0.0866]
[1625454325941,1.3100651,34396.0,34391.0,0.2046]
[1625454326040,1.3100651,34396.0,34392.0,0.057]
[1625454326140,1.3100651,34396.0,34392.0,0.12069648]
[1625454326241,1.2770651,34396.0,34392.0,0.12069648]
[1625454326342,0.941,34396.0,34395.0,0.72172632]
[1625454326444,0.941,34396.0,34395.0,0.83772632]
[1625454326743,0.941,34396.0,34395.0,0.84242274]
[1625454327394,0.941,34396.0,34395.0,0.92872274]
[1625454328598,0.9087,34396.0,34395.0,0.92872274]
[1625454330549,0.9087,34396.0,34395.0,0.98772274]
[1625454331049,0.9051,34396.0,34395.0,0.98772274]
[1625454331149,0.9051,34396.0,34395.0,1.32889366]
[1625454331650,0.9051,34396.0,34395.0,2.69706767]
[1625454332352,0.9051,34396.0,34395.0,2.72166767]
[1625454332702,0.6861,34396.0,34395.0,2.72166767]
[1625454332906,0.6284,34396.0,34395.0,2.72166767]
[1625454333004,0.541,34396.0,34395.0,2.72166767]
[1625454333205,0.541,34396.0,34395.0,2.73244934]
[1625454333303,0.33885962,34400.0,34395.0,2.73244934]
[1625454333404,0.33920268,34403.0,34395.0,5.73107077]
[1625454333503,0.33920268,34403.0,34395.0,6.22889639]
[1625454333704,0.33920268,34403.0,34396.0,0.01077091]
[1625454333804,0.33920268,34403.0,34396.0,0.36363103]
[1625454333904,0.33920268,34403.0,34397.0,0.057]
[1625454334005,0.33920268,34403.0,34398.0,0.5]
[1625454334109,0.33943749,34410.0,34402.0,1.70683376]
[1625454334206,0.33943749,34410.0,34403.0,0.057]
[1625454334306,0.33943749,34410.0,34403.0,0.46779]
[1625454334406,0.33943749,34410.0,34409.0,0.48115088]
[1625454334506,0.33943749,34410.0,34409.0,0.65615088]
[1625454334609,0.33948512,34411.0,34409.0,0.65615088]
[1625454334710,0.33948512,34411.0,34409.0,0.66084454]
[1625454334960,0.33948512,34411.0,34410.0,0.00469361]
[1625454335061,0.33948512,34411.0,34410.0,0.38541361]
[1625454335161,0.33948512,34411.0,34410.0,0.44241361]
[1625454336014,0.57968719,34412.0,34410.0,0.44241361]
[1625454336413,0.57968719,34412.0,34411.0,0.00469656]
[1625454336513,0.57968719,34412.0,34411.0,0.12269656]
[1625454336614,0.57968719,34412.0,34411.0,0.17969656]
[1625454336963,0.57968719,34412.0,34411.0,0.175]
[1625454337062,0.33911175,34412.0,34411.0,0.175]
[1625454338121,0.33884906,34413.0,34411.0,0.175]
[1625454338366,0.33884906,34413.0,34412.0,0.24057544]
[1625454338466,0.33884906,34413.0,34412.0,0.29757544]
[1625454338569,0.33884906,34413.0,34412.0,0.35657544]
[1625454339269,0.33084906,34413.0,34412.0,0.44307544]
[1625454339921,0.33084906,34413.0,34412.0,0.32707544]
[1625454340020,0.33084906,34413.0,34412.0,0.24057544]
[1625454340121,0.67733324,34415.0,34412.0,0.24057544]
[1625454340421,0.67733324,34415.0,34414.0,0.24057544]
[1625454340522,0.67758896,34416.0,34414.0,0.24057544]
[1625454341974,0.67726913,34415.0,34414.0,0.24057544]
[1625454342074,0.89960913,34415.0,34414.0,0.24057544]
[1625454343578,1.91392368,34415.0,34414.0,0.24057544]
[1625454344086,1.91392368,34415.0,34409.0,0.48115088]
[1625454344182,1.91392368,34415.0,34409.0,0.54015088]
[1625454344382,1.91392368,34415.0,34409.0,0.59915088]
[1625454344485,0.24057544,34412.0,34409.0,0.59915088]
[1625454345435,0.24057544,34412.0,34409.0,0.54015088]
[1625454345835,0.24057544,34412.0,34409.0,0.59915088]
[1625454347287,0.24057544,34412.0,34409.0,0.54015088]
[1625454348542,0.24057544,34412.0,34409.0,0.59915088]
[1625454348744,0.92097906,34412.0,34409.0,0.59915088]
[1625454349044,0.92097906,34412.0,34409.0,0.54015088]
[1625454349344,0.92097906,34412.0,34411.0,5.0276]
[1625454349444,0.68040362,34412.0,34411.0,5.28701]
[1625454349546,0.68040362,34412.0,34411.0,5.34401]
[1625454349644,0.1704358,34415.0,34411.0,5.34869226]
[1625454349744,0.1704358,34415.0,34412.0,0.0862]
[1625454349843,0.1704358,34415.0,34412.0,0.1452]
[1625454349944,0.1704358,34415.0,34412.0,0.14988208]
[1625454350145,0.1704358,34415.0,34413.0,0.057]
[1625454350247,0.17046676,34417.0,34413.0,0.057]
[1625454350345,0.17046676,34417.0,34413.0,0.116]
[1625454350445,0.22946676,34417.0,34416.0,0.72172632]
[1625454351601,0.059,34417.0,34416.0,0.72172632]
[1625454352553,0.22946003,34417.0,34416.0,0.72172632]
[1625454354204,0.059,34417.0,34416.0,0.72172632]
[1625454354854,0.059,34417.0,34409.0,0.24057544]
[1625454354855,0.74030708,34417.0,34409.0,0.24057544]
[1625454354953,1.05127708,34417.0,34406.0,0.16974805]
[1625454355054,1.11027708,34417.0,34406.0,0.16974805]
[1625454355253,1.11027708,34417.0,34402.0,0.17021018]
[1625454355355,0.17047104,34411.0,34407.0,0.0046854]
[1625454355453,0.28847104,34411.0,34407.0,0.0046854]
[1625454355653,0.28847104,34411.0,34403.0,0.00468542]
[1625454355755,0.17042409,34409.0,34403.0,0.00468542]
[1625454355856,0.40023409,34409.0,34408.0,0.00468548]
[1625454355956,0.45923409,34409.0,34408.0,0.00468548]
[1625454356111,0.22981,34409.0,34408.0,0.00468548]
[1625454356209,0.22981,34409.0,34401.0,0.00468548]
[1625454356306,0.22981,34409.0,34401.0,0.12268548]
[1625454356406,0.22981,34409.0,34408.0,0.00468543]
[1625454356506,0.95153632,34409.0,34408.0,0.00468543]
[1625454356656,0.95153632,34409.0,34403.0,0.00468547]
[1625454356960,0.95153632,34409.0,34402.0,0.06168544]
[1625454357059,0.95153632,34409.0,34402.0,0.12068544]
[1625454357160,0.95153632,34409.0,34402.0,0.17968544]
[1625454357261,0.95153632,34409.0,34403.0,0.00468548]
[1625454357360,1.63315161,34409.0,34403.0,0.06368548]
[1625454357710,1.63315161,34409.0,34404.0,0.00468542]
[1625454357812,0.95153632,34409.0,34404.0,0.00468542]
[1625454357911,0.95153632,34409.0,34404.0,0.06368542]
[1625454358061,0.95153632,34409.0,34404.0,0.00468542]
[1625454358162,1.01053632,34409.0,34404.0,0.00468542]
[1625454358261,1.01053632,34409.0,34405.0,0.00468548]
[1625454358512,1.01053632,34409.0,34404.0,0.24057544]
[1625454358711,0.17060009,34407.0,34404.0,0.24057544]
[1625454358811,0.17060009,34407.0,34405.0,0.00468547]
[1625454359615,0.17060009,34407.0,34402.0,0.00468572]
[1625454359716,0.17060009,34407.0,34402.0,0.12268572]
[1625454360067,0.170514,34406.0,34403.0,0.057]
[1625454360166,0.170514,34406.0,34403.0,0.06168552]
[1625454360269,0.170514,34406.0,34403.0,0.17968552]
[1625454360469,0.17064929,34407.0,34404.0,0.06368536]
[1625454360568,0.17064929,34407.0,34404.0,0.3632608]
[1625454360920,0.17065577,34408.0,34405.0,0.00468533]
[1625454361019,0.17065577,34408.0,34405.0,0.06368533]
[1625454361121,0.17065577,34408.0,34405.0,0.12268533]
[1625454361519,0.17065577,34408.0,34406.0,0.00468516]
[1625454361621,0.17065577,34408.0,34406.0,0.12268516]
[1625454361822,0.72172632,34409.0,34406.0,0.12268516]
[1625454361921,0.72172632,34409.0,34407.0,0.057]
[1625454362022,0.72172632,34409.0,34407.0,0.12068486]
[1625454362122,0.72172632,34409.0,34407.0,0.17968486]
[1625454362272,0.72172632,34409.0,34408.0,0.00468486]
[1625454362371,0.72172632,34409.0,34408.0,0.12268486]
[1625454362473,0.72172632,34409.0,34408.0,0.17968486]
[1625454364926,0.72172632,34409.0,34408.0,0.12068486]
[1625454365030,0.72172632,34409.0,34408.0,0.17968486]
[1625454367990,0.72172632,34409.0,34408.0,0.12068486]
[1625454368092,0.72172632,34409.0,34408.0,0.06368486]
[1625454368392,0.72172632,34409.0,34408.0,0.12268486]
[1625454369044,0.72172632,34409.0,34408.0,0.17968486]
[1625454370648,0.72172632,34409.0,34408.0,0.26618486]
[1625454370747,0.48115088,34409.0,34408.0,0.26618486]
[1625454370852,0.1706257,34414.0,34408.0,0.26618486]
[1625454371048,0.1706257,34414.0,34408.0,0.27479081]
[1625454371298,0.1706257,34414.0,34409.0,0.01329708]
[1625454371399,0.1706257,34414.0,34409.0,0.13129708]
[1625454371502,0.17063854,34420.0,34413.0,0.16885322]
[1625454371601,0.17063854,34420.0,34414.0,0.144]
[1625454371699,0.17063854,34420.0,34414.0,0.203]
[1625454371801,0.17063854,34420.0,34414.0,0.262]
[1625454371900,0.17063854,34420.0,34415.0,0.00469124]
[1625454372000,0.17063854,34420.0,34415.0,0.06369124]
[1625454372400,0.17063854,34420.0,34416.0,0.00469124]
[1625454372500,0.17063854,34420.0,34416.0,0.06369124]
[1625454372601,0.41121398,34420.0,34419.0,0.24057544]
[1625454372701,0.41121398,34420.0,34419.0,0.35657544]
[1625454372903,0.41121398,34420.0,34419.0,0.36126648]
[1625454375057,0.41121398,34420.0,34419.0,0.42026648]
[1625454375407,0.24057544,34420.0,34419.0,0.42026648]
[1625454379367,0.24057544,34420.0,34419.0,0.58917574]
[1625454379768,0.24057544,34420.0,34419.0,0.42026648]
[1625454380270,0.24057544,34420.0,34419.0,1.09619605]
[1625454382173,0.24057544,34420.0,34419.0,2.11167078]
[1625454383074,0.24057544,34420.0,34419.0,1.09619605]
[1625454383574,0.24057544,34420.0,34419.0,2.11253913]
[1625454383875,0.15327544,34420.0,34419.0,2.11253913]
[1625454385429,0.15327544,34420.0,34419.0,3.2975651]
[1625454386883,0.15327544,34420.0,34419.0,4.65123323]
[1625454388284,0.8391,34423.0,34419.0,4.65123323]
[1625454388385,0.7557,34423.0,34419.0,4.65123323]
[1625454388506,0.6128,34423.0,34419.0,4.65123323]
[1625454388586,0.37143781,34423.0,34419.0,4.65123323]
[1625454388688,0.37143781,34423.0,34422.0,0.24057544]
[1625454388789,0.36943781,34423.0,34422.0,0.62275544]
[1625454388895,0.34273781,34423.0,34422.0,0.68175544]
[1625454388988,0.34273781,34423.0,34422.0,0.6274508]
[1625454389190,0.28373781,34423.0,34422.0,0.6274508]
[1625454389440,0.28373781,34423.0,34422.0,4.85840216]
[1625454389640,0.24057544,34428.0,34422.0,4.85840216]
[1625454389742,0.05157544,34428.0,34422.0,4.91740216]
[1625454389843,0.05157544,34428.0,34422.0,6.42482397]
[1625454390041,0.05157544,34428.0,34423.0,0.01532225]
[1625454390140,0.05157544,34428.0,34423.0,0.13332225]
[1625454390241,0.05157544,34428.0,34424.0,0.057]
[1625454390343,0.05157544,34428.0,34427.0,2.86716643]
[1625454390444,0.05157544,34428.0,34427.0,2.98316643]
[1625454390641,0.05157544,34428.0,34427.0,2.98786166]
[1625454390740,0.05157544,34428.0,34427.0,3.2284371]
[1625454390890,0.23445088,34431.0,34427.0,3.2284371]
[1625454391091,0.23445088,34431.0,34427.0,3.2874371]
[1625454391393,0.23445088,34431.0,34428.0,0.00469523]
[1625454391493,0.23445088,34431.0,34428.0,0.12269523]
[1625454391494,0.21475088,34431.0,34428.0,0.12269523]
[1625454391594,0.21475088,34431.0,34429.0,0.057]
[1625454391696,0.19255088,34431.0,34430.0,5.64596493]
[1625454391793,0.19255088,34431.0,34430.0,5.76196493]
[1625454392096,0.19255088,34431.0,34430.0,5.76666015]
[1625454392398,0.14175088,34431.0,34430.0,5.76666015]
[1625454392647,0.10235088,34431.0,34430.0,5.76666015]
[1625454392753,0.10235088,34431.0,34430.0,6.00723559]
[1625454393147,0.17087918,34434.0,34430.0,6.00723559]
[1625454393548,0.41145419,34435.0,34432.0,0.16833657]
[1625454393648,0.41145419,34435.0,34433.0,0.057]
[1625454393848,0.40805419,34435.0,34433.0,0.057]
[1625454393949,0.40805419,34435.0,34434.0,0.00469813]
[1625454394049,0.40805419,34435.0,34434.0,0.06369813]
[1625454394150,0.23717544,34435.0,34434.0,0.06369813]
[1625454394551,0.23717544,34435.0,34434.0,0.00469813]
[1625454394803,0.51203854,34437.0,34434.0,0.48584901]
[1625454394804,0.17079308,34437.0,34434.0,0.48584901]
[1625454395103,0.17079308,34437.0,34435.0,0.057]
[1625454395201,0.17079308,34437.0,34435.0,0.00469817]
[1625454395302,0.51204214,34436.0,34435.0,0.00469817]
[1625454396154,0.17078059,34436.0,34435.0,0.00469817]
[1625454396454,0.22978059,34436.0,34435.0,0.00469817]
[1625454396554,0.57076593,34436.0,34434.0,0.48115088]
[1625454396759,0.24057544,34435.0,34434.0,0.48115088]
[1625454396858,0.29957544,34435.0,34430.0,0.16808844]
[1625454396960,0.35857544,34435.0,34427.0,1.03313063]
[1625454397058,0.52927946,34435.0,34429.0,0.16811843]
[1625454397259,0.52927946,34435.0,34429.0,1.843e-05]
[1625454397660,0.47027946,34435.0,34429.0,0.0047175]
[1625454397815,0.51182453,34430.0,34429.0,0.00469907]
[1625454397915,0.71555453,34430.0,34429.0,0.00469907]
[1625454398160,0.71555453,34430.0,34428.0,0.0046991]
[1625454398415,0.77455453,34430.0,34428.0,0.0046991]
[1625454398822,0.72172632,34429.0,34428.0,0.0046991]
[1625454399013,1.23352011,34429.0,34428.0,0.0046991]
[1625454399465,0.72172632,34429.0,34428.0,0.0046991]
[1625454399665,0.72172632,34429.0,34428.0,0.0636991]
[1625454400063,0.72172632,34429.0,34428.0,0.1226991]
[1625454400162,0.72172632,34429.0,34428.0,0.1796991]
[1625454400264,0.72172632,34429.0,34428.0,0.1206991]
[1625454400361,0.72172632,34429.0,34428.0,0.1796991]
[1625454400862,0.72172632,34429.0,34428.0,0.1226991]
[1625454400963,0.72172632,34429.0,34428.0,0.0636991]
[1625454401465,0.72172632,34429.0,34428.0,0.1226991]
[1625454401967,0.72172632,34429.0,34428.0,0.1796991]
[1625454402418,0.72172632,34429.0,34428.0,0.1206991]
[1625454402518,0.72172632,34429.0,34428.0,0.0636991]
[1625454403620,0.72172632,34429.0,34428.0,0.1226991]
[1625454403720,0.72172632,34429.0,34428.0,0.1796991]
[1625454403923,0.72172632,34429.0,34428.0,3.9676991]
[1625454404125,0.72172632,34429.0,34428.0,3.9086991]
[1625454404421,0.72172632,34429.0,34428.0,3.8516991]
[1625454404624,0.72172632,34429.0,34428.0,3.93567406]
[1625454404822,0.72172632,34429.0,34428.0,0.42217406]
[1625454405179,0.72172632,34429.0,34428.0,0.3381991]
[1625454405274,0.72172632,34429.0,34428.0,0.0636991]
[1625454405677,0.72172632,34429.0,34428.0,0.1206991]
[1625454406278,0.72172632,34429.0,34428.0,0.20469542]
[1625454406477,0.72172632,34429.0,34428.0,0.26369542]
[1625454406779,0.72172632,34429.0,34428.0,0.35009542]
[1625454407581,0.72172632,34429.0,34428.0,1.77672156]
[1625454407684,0.68702632,34429.0,34428.0,5.56362156]
[1625454408683,0.67692632,34429.0,34428.0,5.56362156]
[1625454408782,0.17577544,34429.0,34428.0,5.804197]
[1625454408983,0.24057544,34435.0,34428.0,6.98670505]
[1625454409284,0.24057544,34435.0,34429.0,0.00466674]
[1625454409384,0.24057544,34435.0,34429.0,0.12266674]
[1625454409484,0.24057544,34435.0,34430.0,0.057]
[1625454409587,0.24057544,34435.0,34434.0,0.50283]
[1625454409685,0.24057544,34435.0,34434.0,0.76433]
[1625454410036,0.24057544,34435.0,34434.0,0.76899656]
[1625454410785,0.24057544,34435.0,34434.0,1.009572]
[1625454412286,0.24057544,34435.0,34434.0,2.01531231]
[1625454412739,0.15367544,34435.0,34434.0,2.01531231]
[1625454414595,0.11337544,34435.0,34434.0,2.01531231]
[1625454415300,0.24057544,34438.0,34434.0,2.01531231]
[1625454415446,0.9969,34441.0,34434.0,2.01531231]